[Event "Chessable Masters - Torneo preliminare"]
[White "Salem, A.R. Saleh"]
[Black "Sychev, Klementy"]
[WhiteFideId "9301348"]
[BlackFideId "4114060"]
[WhiteElo "2654"]
[BlackElo "2484"]
[Result "1-0"]
[Round "2"]
[TimeControl "600+2"]
[Date "2023.03.13"]
[WhiteClock "0:01:22"]
[BlackClock "0:00:10"]

1. d3 {[%clk 0:08:53]}  d5 {[%clk 0:09:41]} 2. Nf3 {[%clk 0:08:53]}  Nc6 {[%clk 0:09:32]} 3. d4 {[%clk 0:08:51]}  Bf5 {[%clk 0:09:26]} 4. g3 {[%clk 0:08:52]}  e6 {[%clk 0:09:18]} 5. Bg2 {[%clk 0:08:52]}  h5 {[%clk 0:09:11]} 6. h4 {[%clk 0:08:47]}  Nf6 {[%clk 0:09:10]} 7. O-O {[%clk 0:08:46]}  Ne4 {[%clk 0:09:08]} 8. c4 {[%clk 0:08:27]}  Be7 {[%clk 0:09:03]} 9. Nc3 {[%clk 0:08:26]}  Qd7 {[%clk 0:08:46]} 10. Bf4 {[%clk 0:08:19]}  O-O {[%clk 0:06:44]} 11. Ne5 {[%clk 0:07:07]}  Nxe5 {[%clk 0:06:38]} 12. dxe5 {[%clk 0:07:09]}  Rfd8 {[%clk 0:05:41]} 13. cxd5 {[%clk 0:06:37]}  Nxc3 {[%clk 0:05:16]} 14. bxc3 {[%clk 0:06:38]}  exd5 {[%clk 0:05:18]} 15. Qb3 {[%clk 0:06:05]}  Qc6 {[%clk 0:04:53]} 16. Rfd1 {[%clk 0:05:29]}  Be4 {[%clk 0:04:53]} 17. Bxe4 {[%clk 0:05:06]}  dxe4 {[%clk 0:04:55]} 18. c4 {[%clk 0:04:45]}  a6 {[%clk 0:04:51]} 19. a4 {[%clk 0:04:37]}  b6 {[%clk 0:04:47]} 20. Rd5 {[%clk 0:04:32]}  Bc5 {[%clk 0:02:27]} 21. Rad1 {[%clk 0:04:28]}  Qe8 {[%clk 0:02:22]} 22. Qc2 {[%clk 0:04:15]}  e3 {[%clk 0:02:20]} 23. f3 {[%clk 0:04:06]}  c6 {[%clk 0:02:14]} 24. R5d3 {[%clk 0:03:40]}  Rac8 {[%clk 0:02:11]} 25. Kg2 {[%clk 0:03:35]}  Ra8 {[%clk 0:01:58]} 26. Qc3 {[%clk 0:03:09]}  Rxd3 {[%clk 0:01:32]} 27. Rxd3 {[%clk 0:03:11]}  Qe6 {[%clk 0:01:31]} 28. Bxe3 {[%clk 0:03:04]}  Bxe3 {[%clk 0:01:28]} 29. Rxe3 {[%clk 0:03:06]}  b5 {[%clk 0:01:23]} 30. Rd3 {[%clk 0:02:08]}  Re8 {[%clk 0:01:08]} 31. f4 {[%clk 0:02:07]}  Qf5 {[%clk 0:00:19]} 32. Rd6 {[%clk 0:02:05]}  Qe4+ {[%clk 0:00:17]} 33. Qf3 {[%clk 0:02:06]}  Qxc4 {[%clk 0:00:18]} 34. axb5 {[%clk 0:02:01]}  cxb5 {[%clk 0:00:19]} 35. Rxa6 {[%clk 0:01:55]}  b4 {[%clk 0:00:20]} 36. Rb6 {[%clk 0:01:55]}  Qc5 {[%clk 0:00:18]} 37. Rb7 {[%clk 0:01:55]}  g6 {[%clk 0:00:16]} 38. Qe4 {[%clk 0:01:41]}  Re6 {[%clk 0:00:03]} 39. Rb8+ {[%clk 0:01:32]}  Kg7 {[%clk 0:00:04]} 40. Qa8 {[%clk 0:01:33]}  Qc6+ {[%clk 0:00:04]} 41. Qxc6 {[%clk 0:01:35]}  Rxc6 {[%clk 0:00:05]} 42. Rxb4 {[%clk 0:01:37]}  Rc3 {[%clk 0:00:06]} 43. Rb7 {[%clk 0:01:36]}  Kf8 {[%clk 0:00:07]} 44. Kf2 {[%clk 0:01:37]}  Kg8 {[%clk 0:00:07]} 45. Rb6 {[%clk 0:01:38]}  Kg7 {[%clk 0:00:07]} 46. e3 {[%clk 0:01:38]}  Kf8 {[%clk 0:00:08]} 47. Kf3 {[%clk 0:01:37]}  Rc1 {[%clk 0:00:09]} 48. e6 {[%clk 0:01:22]}  f5 {[%clk 0:00:10]} 49. e7+ {[%clk 0:01:22]} 1-0


[Site "Internet"]

[Event "Chessable Masters - Torneo preliminare"]
[White "Rasulov, Vugar"]
[Black "Fedoseev, Vladimir"]
[WhiteFideId "13402390"]
[BlackFideId "24130737"]
[WhiteElo "2415"]
[BlackElo "2752"]
[Result "0-1"]
[Round "2"]
[TimeControl "600+2"]
[Date "2023.03.13"]
[WhiteClock "0:00:19"]
[BlackClock "0:01:19"]

1. e4 {[%clk 0:10:01]}  c6 {[%clk 0:09:45]} 2. d4 {[%clk 0:09:56]}  d5 {[%clk 0:09:46]} 3. exd5 {[%clk 0:09:57]}  cxd5 {[%clk 0:09:46]} 4. Bd3 {[%clk 0:09:58]}  Nf6 {[%clk 0:09:43]} 5. c3 {[%clk 0:09:53]}  Bg4 {[%clk 0:09:43]} 6. Qb3 {[%clk 0:09:35]}  Qc7 {[%clk 0:09:39]} 7. h3 {[%clk 0:09:32]}  Bd7 {[%clk 0:09:38]} 8. Nf3 {[%clk 0:08:02]}  Nc6 {[%clk 0:09:36]} 9. O-O {[%clk 0:07:49]}  e6 {[%clk 0:09:22]} 10. Re1 {[%clk 0:06:54]}  h6 {[%clk 0:09:21]} 11. Ne5 {[%clk 0:06:39]}  Bd6 {[%clk 0:08:51]} 12. Bf4 {[%clk 0:06:25]}  g5 {[%clk 0:08:14]} 13. Nxd7 {[%clk 0:06:06]}  Qxd7 {[%clk 0:08:05]} 14. Bxd6 {[%clk 0:05:52]}  Qxd6 {[%clk 0:08:07]} 15. Qxb7 {[%clk 0:05:44]}  Rb8 {[%clk 0:07:48]} 16. Qa6 {[%clk 0:05:43]}  Rxb2 {[%clk 0:06:41]} 17. Bb5 {[%clk 0:04:42]}  O-O {[%clk 0:06:40]} 18. Bxc6 {[%clk 0:04:34]}  Rb6 {[%clk 0:05:44]} 19. Qxa7 {[%clk 0:04:24]}  Qxc6 {[%clk 0:05:43]} 20. Nd2 {[%clk 0:04:15]}  Rb2 {[%clk 0:05:23]} 21. Nf3 {[%clk 0:03:50]}  Ne4 {[%clk 0:05:09]} 22. Rab1 {[%clk 0:03:31]}  Qxc3 {[%clk 0:04:48]} 23. Rxb2 {[%clk 0:03:23]}  Qxb2 {[%clk 0:04:47]} 24. Rf1 {[%clk 0:03:24]}  h5 {[%clk 0:02:32]} 25. Ne5 {[%clk 0:02:58]}  Kg7 {[%clk 0:02:22]} 26. a4 {[%clk 0:02:52]}  g4 {[%clk 0:02:03]} 27. hxg4 {[%clk 0:02:50]}  hxg4 {[%clk 0:02:04]} 28. Nxg4 {[%clk 0:02:39]}  Nc3 {[%clk 0:02:01]} 29. g3 {[%clk 0:01:27]}  Qe2 {[%clk 0:02:01]} 30. Qc7 {[%clk 0:01:13]}  Qf3 {[%clk 0:02:00]} 31. Qe5+ {[%clk 0:01:11]}  f6 {[%clk 0:02:01]} 32. Nxf6 {[%clk 0:00:57]}  Rxf6 {[%clk 0:01:46]} 33. Kh2 {[%clk 0:00:29]}  Ne4 {[%clk 0:01:24]} 34. a5 {[%clk 0:00:20]}  Kh7 {[%clk 0:01:15]} 35. Qc7+ {[%clk 0:00:20]}  Rf7 {[%clk 0:01:17]} 36. Qe5 {[%clk 0:00:18]}  Rf5 {[%clk 0:01:18]} 37. Qc7+ {[%clk 0:00:19]}  Kg6 {[%clk 0:01:19]} 0-1


[Site "Internet"]

[Event "Chessable Masters - Torneo preliminare"]
[White "Praggnanandhaa, R"]
[Black "Sourath, Biswas"]
[WhiteFideId "25059530"]
[BlackFideId "35091484"]
[WhiteElo "2587"]
[BlackElo "2138"]
[Result "1-0"]
[Round "2"]
[TimeControl "600+2"]
[Date "2023.03.13"]
[WhiteClock "0:00:06"]
[BlackClock "0:00:12"]

1. Nf3 {[%clk 0:10:00]}  Nf6 {[%clk 0:10:01]} 2. g3 {[%clk 0:10:00]}  g6 {[%clk 0:10:02]} 3. b3 {[%clk 0:10:00]}  Bg7 {[%clk 0:10:04]} 4. Bb2 {[%clk 0:10:02]}  O-O {[%clk 0:10:05]} 5. Bg2 {[%clk 0:10:03]}  d6 {[%clk 0:10:07]} 6. d4 {[%clk 0:10:04]}  c5 {[%clk 0:10:09]} 7. O-O {[%clk 0:09:48]}  Nc6 {[%clk 0:10:06]} 8. d5 {[%clk 0:09:41]}  Na5 {[%clk 0:10:07]} 9. Nfd2 {[%clk 0:09:03]}  e6 {[%clk 0:09:45]} 10. e4 {[%clk 0:08:18]}  exd5 {[%clk 0:09:41]} 11. exd5 {[%clk 0:08:18]}  Bg4 {[%clk 0:09:31]} 12. Qc1 {[%clk 0:08:18]}  b5 {[%clk 0:09:12]} 13. c4 {[%clk 0:08:06]}  Rb8 {[%clk 0:08:47]} 14. cxb5 {[%clk 0:08:03]}  Be2 {[%clk 0:08:45]} 15. Re1 {[%clk 0:08:03]}  Bxb5 {[%clk 0:08:46]} 16. Nc3 {[%clk 0:08:04]}  Bd3 {[%clk 0:08:45]} 17. Nde4 {[%clk 0:07:25]}  c4 {[%clk 0:08:27]} 18. Nxf6+ {[%clk 0:06:59]}  Bxf6 {[%clk 0:08:29]} 19. Qd2 {[%clk 0:06:50]}  Bf5 {[%clk 0:08:19]} 20. b4 {[%clk 0:04:42]}  Rxb4 {[%clk 0:07:49]} 21. Rac1 {[%clk 0:04:41]}  Bg5 {[%clk 0:07:20]} 22. Re3 {[%clk 0:04:10]}  Bxe3 {[%clk 0:05:49]} 23. fxe3 {[%clk 0:04:05]}  Bd3 {[%clk 0:04:29]} 24. Nd1 {[%clk 0:03:43]}  Rb5 {[%clk 0:03:07]} 25. Nf2 {[%clk 0:03:18]}  Bf5 {[%clk 0:01:53]} 26. g4 {[%clk 0:02:55]}  Bd3 {[%clk 0:01:26]} 27. Bd4 {[%clk 0:02:48]}  Nb7 {[%clk 0:00:21]} 28. Nxd3 {[%clk 0:01:59]}  cxd3 {[%clk 0:00:23]} 29. Qxd3 {[%clk 0:02:01]}  a6 {[%clk 0:00:24]} 30. a4 {[%clk 0:01:46]}  Rb4 {[%clk 0:00:25]} 31. Qxa6 {[%clk 0:01:22]}  Nc5 {[%clk 0:00:25]} 32. Bxc5 {[%clk 0:00:58]}  dxc5 {[%clk 0:00:22]} 33. h3 {[%clk 0:01:00]}  Qe7 {[%clk 0:00:18]} 34. e4 {[%clk 0:00:56]}  Qg5 {[%clk 0:00:18]} 35. Qf1 {[%clk 0:00:42]}  Rxa4 {[%clk 0:00:15]} 36. Kh1 {[%clk 0:00:42]}  Rc8 {[%clk 0:00:14]} 37. Rc2 {[%clk 0:00:37]}  c4 {[%clk 0:00:15]} 38. d6 {[%clk 0:00:37]}  c3 {[%clk 0:00:09]} 39. Qd1 {[%clk 0:00:21]}  Rac4 {[%clk 0:00:07]} 40. Qd3 {[%clk 0:00:17]}  R4c6 {[%clk 0:00:06]} 41. e5 {[%clk 0:00:17]}  Rc5 {[%clk 0:00:05]} 42. e6 {[%clk 0:00:13]}  fxe6 {[%clk 0:00:06]} 43. d7 {[%clk 0:00:06]}  Rd8 {[%clk 0:00:08]} 44. Qd6 {[%clk 0:00:08]}  Qe5 {[%clk 0:00:08]} 45. Qe7 {[%clk 0:00:08]}  Qc7 {[%clk 0:00:10]} 46. Rf2 {[%clk 0:00:09]}  Qxd7 {[%clk 0:00:10]} 47. Qxc5 {[%clk 0:00:03]}  Qd1+ {[%clk 0:00:11]} 48. Rf1 {[%clk 0:00:03]}  Qd4 {[%clk 0:00:11]} 49. Rf8+ {[%clk 0:00:03]}  Kg7 {[%clk 0:00:11]} 50. Qe7+ {[%clk 0:00:04]}  Kh6 {[%clk 0:00:12]} 51. Qh4+ {[%clk 0:00:06]} 1-0


[Site "Internet"]

[Event "Chessable Masters - Torneo preliminare"]
[White "Sadhwani, Raunak"]
[Black "Kevlishvili, Robby"]
[WhiteFideId "35093487"]
[BlackFideId "1040634"]
[WhiteElo "2550"]
[BlackElo "2577"]
[Result "0-1"]
[Round "2"]
[TimeControl "600+2"]
[Date "2023.03.13"]
[WhiteClock "0:01:09"]
[BlackClock "0:01:07"]

1. d4 {[%clk 0:10:01]}  d5 {[%clk 0:09:56]} 2. Nc3 {[%clk 0:10:01]}  Nf6 {[%clk 0:09:55]} 3. Bf4 {[%clk 0:10:02]}  a6 {[%clk 0:09:52]} 4. e3 {[%clk 0:09:53]}  Bf5 {[%clk 0:09:49]} 5. Bd3 {[%clk 0:09:25]}  Bg6 {[%clk 0:09:43]} 6. h4 {[%clk 0:09:25]}  e6 {[%clk 0:09:29]} 7. h5 {[%clk 0:09:24]}  Bxd3 {[%clk 0:09:30]} 8. cxd3 {[%clk 0:09:26]}  Bd6 {[%clk 0:09:19]} 9. h6 {[%clk 0:09:21]}  g6 {[%clk 0:08:54]} 10. Qb3 {[%clk 0:09:21]}  Bxf4 {[%clk 0:08:42]} 11. exf4 {[%clk 0:09:23]}  Nc6 {[%clk 0:08:38]} 12. Nf3 {[%clk 0:09:24]}  Qd6 {[%clk 0:08:24]} 13. g3 {[%clk 0:09:23]}  Qb4 {[%clk 0:08:08]} 14. Qxb4 {[%clk 0:08:56]}  Nxb4 {[%clk 0:08:09]} 15. Ke2 {[%clk 0:08:49]}  Nd7 {[%clk 0:08:02]} 16. a3 {[%clk 0:08:42]}  Nc6 {[%clk 0:08:02]} 17. Rac1 {[%clk 0:08:42]}  Ke7 {[%clk 0:08:01]} 18. Na4 {[%clk 0:08:30]}  f6 {[%clk 0:08:01]} 19. Rhe1 {[%clk 0:07:59]}  Kd6 {[%clk 0:08:02]} 20. Kd2 {[%clk 0:07:55]}  Rae8 {[%clk 0:07:55]} 21. Nc5 {[%clk 0:07:37]}  Nxc5 {[%clk 0:07:46]} 22. dxc5+ {[%clk 0:07:26]}  Kd7 {[%clk 0:07:47]} 23. d4 {[%clk 0:07:27]}  Rhf8 {[%clk 0:07:39]} 24. Rc3 {[%clk 0:07:27]}  g5 {[%clk 0:07:05]} 25. Rg1 {[%clk 0:04:56]}  g4 {[%clk 0:06:52]} 26. Nh2 {[%clk 0:04:55]}  Nxd4 {[%clk 0:04:25]} 27. Nxg4 {[%clk 0:04:55]}  e5 {[%clk 0:04:26]} 28. Rd3 {[%clk 0:04:32]}  Kc6 {[%clk 0:04:27]} 29. Re1 {[%clk 0:04:15]}  Kxc5 {[%clk 0:04:24]} 30. b4+ {[%clk 0:03:22]}  Kd6 {[%clk 0:04:22]} 31. Nxf6 {[%clk 0:03:22]}  Rxf6 {[%clk 0:04:19]} 32. Rxd4 {[%clk 0:03:22]}  Rxh6 {[%clk 0:04:11]} 33. fxe5+ {[%clk 0:03:15]}  Rxe5 {[%clk 0:04:11]} 34. Rxe5 {[%clk 0:03:17]}  Kxe5 {[%clk 0:04:13]} 35. Rg4 {[%clk 0:03:17]}  b6 {[%clk 0:04:02]} 36. Rg5+ {[%clk 0:02:40]}  Kd6 {[%clk 0:04:02]} 37. Rg8 {[%clk 0:02:37]}  Kc6 {[%clk 0:03:55]} 38. a4 {[%clk 0:02:31]}  Rf6 {[%clk 0:03:12]} 39. Ke2 {[%clk 0:02:01]}  Re6+ {[%clk 0:03:12]} 40. Kd3 {[%clk 0:01:57]}  Re4 {[%clk 0:03:08]} 41. Rg7 {[%clk 0:01:58]}  Rxb4 {[%clk 0:03:03]} 42. Rxh7 {[%clk 0:01:59]}  Rxa4 {[%clk 0:03:05]} 43. Rg7 {[%clk 0:02:00]}  Kd6 {[%clk 0:03:05]} 44. f4 {[%clk 0:02:01]}  c5 {[%clk 0:03:06]} 45. f5 {[%clk 0:02:03]}  Ke5 {[%clk 0:03:05]} 46. g4 {[%clk 0:02:00]}  c4+ {[%clk 0:02:45]} 47. Ke2 {[%clk 0:01:59]}  Ra2+ {[%clk 0:02:44]} 48. Kf3 {[%clk 0:01:56]}  Ra3+ {[%clk 0:02:43]} 49. Kf2 {[%clk 0:01:44]}  c3 {[%clk 0:02:28]} 50. Re7+ {[%clk 0:01:40]}  Kf4 {[%clk 0:01:59]} 51. f6 {[%clk 0:01:40]}  c2 {[%clk 0:01:48]} 52. f7 {[%clk 0:01:21]}  Rf3+ {[%clk 0:01:49]} 53. Ke2 {[%clk 0:01:19]}  Kxg4 {[%clk 0:01:50]} 54. Kd2 {[%clk 0:01:20]}  Rf2+ {[%clk 0:01:45]} 55. Kc1 {[%clk 0:01:21]}  d4 {[%clk 0:01:42]} 56. Re4+ {[%clk 0:01:16]}  Kg5 {[%clk 0:01:43]} 57. Rxd4 {[%clk 0:01:15]}  Rxf7 {[%clk 0:01:40]} 58. Kxc2 {[%clk 0:01:16]}  Kf5 {[%clk 0:01:41]} 59. Rd6 {[%clk 0:01:13]}  Rf6 {[%clk 0:01:42]} 60. Rd8 {[%clk 0:01:14]}  Ke5 {[%clk 0:01:43]} 61. Ra8 {[%clk 0:01:15]}  a5 {[%clk 0:01:40]} 62. Kb3 {[%clk 0:01:15]}  Kd5 {[%clk 0:01:41]} 63. Ka4 {[%clk 0:01:15]}  Rf4+ {[%clk 0:01:40]} 64. Ka3 {[%clk 0:01:16]}  Kc5 {[%clk 0:01:41]} 65. Rc8+ {[%clk 0:01:17]}  Kb5 {[%clk 0:01:42]} 66. Rc3 {[%clk 0:01:19]}  Rc4 {[%clk 0:01:39]} 67. Rh3 {[%clk 0:01:20]}  Rd4 {[%clk 0:01:39]} 68. Kb3 {[%clk 0:01:21]}  Kc5 {[%clk 0:01:39]} 69. Rh5+ {[%clk 0:01:22]}  Rd5 {[%clk 0:01:40]} 70. Rh3 {[%clk 0:01:23]}  b5 {[%clk 0:01:41]} 71. Rc3+ {[%clk 0:01:25]}  Kb6 {[%clk 0:01:42]} 72. Rh3 {[%clk 0:01:27]}  a4+ {[%clk 0:01:43]} 73. Ka3 {[%clk 0:01:28]}  Ka5 {[%clk 0:01:44]} 74. Rh4 {[%clk 0:01:30]}  b4+ {[%clk 0:01:45]} 75. Kb2 {[%clk 0:01:30]}  Rd2+ {[%clk 0:01:46]} 76. Kb1 {[%clk 0:01:27]}  a3 {[%clk 0:01:47]} 77. Rh3 {[%clk 0:01:21]}  Ka4 {[%clk 0:01:44]} 78. Rh4 {[%clk 0:01:20]}  Rb2+ {[%clk 0:01:39]} 79. Ka1 {[%clk 0:01:20]}  Rc2 {[%clk 0:01:40]} 80. Kb1 {[%clk 0:01:13]}  Re2 {[%clk 0:01:28]} 81. Ka1 {[%clk 0:01:09]}  Rd2 {[%clk 0:01:13]} 82. Kb1 {[%clk 0:01:08]}  Kb3 {[%clk 0:01:14]} 83. Rh3+ {[%clk 0:01:09]}  Kc4 {[%clk 0:01:15]} 84. Rh4+ {[%clk 0:01:06]}  Kc3 {[%clk 0:01:15]} 85. Rh3+ {[%clk 0:01:03]}  Rd3 {[%clk 0:01:16]} 86. Rh1 {[%clk 0:01:05]}  b3 {[%clk 0:01:16]} 87. Rc1+ {[%clk 0:01:05]}  Kb4 {[%clk 0:01:18]} 88. Rh1 {[%clk 0:01:06]}  Rc3 {[%clk 0:01:16]} 89. Rh4+ {[%clk 0:01:07]}  Rc4 {[%clk 0:01:17]} 90. Rh1 {[%clk 0:01:08]}  a2+ {[%clk 0:01:08]} 91. Ka1 {[%clk 0:01:09]}  Ka3 {[%clk 0:01:07]} 0-1


[Site "Internet"]

[Event "Chessable Masters - Torneo preliminare"]
[White "Le, Quang Liem"]
[Black "Shyam, Sundar M."]
[WhiteFideId "12401137"]
[BlackFideId "5019141"]
[WhiteElo "2661"]
[BlackElo "2464"]
[Result "1-0"]
[Round "2"]
[TimeControl "600+2"]
[Date "2023.03.13"]
[WhiteClock "0:07:23"]
[BlackClock "0:00:49"]

1. d4 {[%clk 0:10:01]}  Nf6 {[%clk 0:09:54]} 2. Nf3 {[%clk 0:10:02]}  g6 {[%clk 0:09:54]} 3. Bf4 {[%clk 0:09:58]}  Bg7 {[%clk 0:09:51]} 4. Nc3 {[%clk 0:09:59]}  d5 {[%clk 0:09:26]} 5. Nb5 {[%clk 0:09:59]}  Na6 {[%clk 0:09:28]} 6. e3 {[%clk 0:09:59]}  O-O {[%clk 0:08:47]} 7. h3 {[%clk 0:09:59]}  Ne4 {[%clk 0:07:48]} 8. Nd2 {[%clk 0:10:00]}  Nxd2 {[%clk 0:07:39]} 9. Qxd2 {[%clk 0:10:02]}  c6 {[%clk 0:07:41]} 10. Nc3 {[%clk 0:10:03]}  Nc7 {[%clk 0:07:35]} 11. O-O-O {[%clk 0:10:04]}  b5 {[%clk 0:07:24]} 12. h4 {[%clk 0:10:04]}  h5 {[%clk 0:06:53]} 13. Be2 {[%clk 0:09:56]}  f6 {[%clk 0:05:16]} 14. g4 {[%clk 0:09:47]}  Bxg4 {[%clk 0:05:09]} 15. Bxg4 {[%clk 0:09:45]}  hxg4 {[%clk 0:05:11]} 16. Rdg1 {[%clk 0:09:46]}  e5 {[%clk 0:05:00]} 17. Bh2 {[%clk 0:09:20]}  Qd7 {[%clk 0:04:55]} 18. f3 {[%clk 0:09:18]}  Bh6 {[%clk 0:03:35]} 19. Rxg4 {[%clk 0:08:30]}  Kh7 {[%clk 0:03:18]} 20. h5 {[%clk 0:08:03]}  exd4 {[%clk 0:03:05]} 21. hxg6+ {[%clk 0:07:52]}  Kg7 {[%clk 0:03:05]} 22. Bf4 {[%clk 0:07:52]}  Bxf4 {[%clk 0:01:51]} 23. Rh7+ {[%clk 0:07:49]}  Kg8 {[%clk 0:01:52]} 24. exf4 {[%clk 0:07:38]}  Qe6 {[%clk 0:01:27]} 25. f5 {[%clk 0:07:21]}  dxc3 {[%clk 0:00:46]} 26. Rh8+ {[%clk 0:07:21]}  Kxh8 {[%clk 0:00:47]} 27. Qh6+ {[%clk 0:07:22]}  Kg8 {[%clk 0:00:49]} 28. Qh7# {[%clk 0:07:23]} 1-0


[Site "Internet"]

[Event "Chessable Masters - Torneo preliminare"]
[White "Abdusattorov, Nodirbek"]
[Black "Vasquez Schroeder, Rodrigo"]
[WhiteFideId "14204118"]
[BlackFideId "3400042"]
[WhiteElo "2714"]
[BlackElo "2589"]
[Result "1-0"]
[Round "2"]
[TimeControl "600+2"]
[Date "2023.03.13"]
[WhiteClock "0:08:16"]
[BlackClock "0:06:47"]

1. e4 {[%clk 0:10:01]}  c5 {[%clk 0:10:00]} 2. Nf3 {[%clk 0:10:02]}  d6 {[%clk 0:10:01]} 3. c3 {[%clk 0:10:00]}  Nf6 {[%clk 0:10:00]} 4. Be2 {[%clk 0:10:01]}  Bg4 {[%clk 0:09:59]} 5. h3 {[%clk 0:09:58]}  Bh5 {[%clk 0:09:59]} 6. O-O {[%clk 0:09:58]}  Nc6 {[%clk 0:09:59]} 7. d4 {[%clk 0:09:58]}  cxd4 {[%clk 0:09:21]} 8. cxd4 {[%clk 0:09:58]}  d5 {[%clk 0:09:21]} 9. e5 {[%clk 0:09:49]}  Ne4 {[%clk 0:09:22]} 10. e6 {[%clk 0:09:31]}  fxe6 {[%clk 0:08:59]} 11. Nc3 {[%clk 0:09:32]}  Nxc3 {[%clk 0:08:37]} 12. bxc3 {[%clk 0:09:32]}  Qd6 {[%clk 0:08:38]} 13. Re1 {[%clk 0:09:11]}  Bg6 {[%clk 0:08:13]} 14. Ng5 {[%clk 0:08:46]}  Bf5 {[%clk 0:07:05]} 15. Bg4 {[%clk 0:08:34]}  Bxg4 {[%clk 0:06:58]} 16. Qxg4 {[%clk 0:08:36]}  e5 {[%clk 0:06:57]} 17. dxe5 {[%clk 0:08:19]}  Nxe5 {[%clk 0:06:47]} 18. Rxe5 {[%clk 0:08:16]} 1-0


[Site "Internet"]

[Event "Chessable Masters - Torneo preliminare"]
[White "Keymer, Vincent"]
[Black "Aditya, Mittal"]
[WhiteFideId "12940690"]
[BlackFideId "35042025"]
[WhiteElo "2630"]
[BlackElo "2386"]
[Result "0-1"]
[Round "2"]
[TimeControl "600+2"]
[Date "2023.03.13"]
[WhiteClock "0:00:04"]
[BlackClock "0:00:11"]

1. c4 {[%clk 0:10:01]}  Nf6 {[%clk 0:10:00]} 2. Nf3 {[%clk 0:10:01]}  e6 {[%clk 0:10:01]} 3. Nc3 {[%clk 0:10:02]}  d5 {[%clk 0:10:02]} 4. e3 {[%clk 0:10:03]}  c5 {[%clk 0:10:02]} 5. cxd5 {[%clk 0:10:04]}  exd5 {[%clk 0:10:03]} 6. Bb5+ {[%clk 0:10:04]}  Nc6 {[%clk 0:10:03]} 7. Ne5 {[%clk 0:10:03]}  Qc7 {[%clk 0:09:58]} 8. Qa4 {[%clk 0:10:04]}  Bd7 {[%clk 0:09:58]} 9. Nxd7 {[%clk 0:10:02]}  Qxd7 {[%clk 0:10:00]} 10. Bxc6 {[%clk 0:10:04]}  bxc6 {[%clk 0:10:02]} 11. b3 {[%clk 0:10:00]}  Bd6 {[%clk 0:09:54]} 12. O-O {[%clk 0:09:30]}  O-O {[%clk 0:09:48]} 13. Ba3 {[%clk 0:09:29]}  Rab8 {[%clk 0:09:35]} 14. Rac1 {[%clk 0:08:52]}  Rfe8 {[%clk 0:09:34]} 15. Qh4 {[%clk 0:06:34]}  Re5 {[%clk 0:08:35]} 16. f4 {[%clk 0:06:20]}  Rh5 {[%clk 0:08:36]} 17. Qg3 {[%clk 0:06:11]}  Re8 {[%clk 0:07:14]} 18. Qf3 {[%clk 0:05:15]}  Rh6 {[%clk 0:05:50]} 19. Ne2 {[%clk 0:04:47]}  Ne4 {[%clk 0:05:27]} 20. Rc2 {[%clk 0:04:16]}  g5 {[%clk 0:05:24]} 21. h3 {[%clk 0:03:33]}  f5 {[%clk 0:04:25]} 22. fxg5 {[%clk 0:03:05]}  Nxg5 {[%clk 0:04:26]} 23. Qxf5 {[%clk 0:02:46]}  Nxh3+ {[%clk 0:04:23]} 24. gxh3 {[%clk 0:02:35]}  Rg6+ {[%clk 0:04:24]} 25. Kh1 {[%clk 0:02:18]}  Rf8 {[%clk 0:04:25]} 26. Qxf8+ {[%clk 0:02:19]}  Bxf8 {[%clk 0:04:26]} 27. Nf4 {[%clk 0:02:21]}  Bd6 {[%clk 0:04:20]} 28. Kh2 {[%clk 0:02:06]}  Qf5 {[%clk 0:03:59]} 29. Rcc1 {[%clk 0:01:34]}  Qg5 {[%clk 0:02:39]} 30. Rg1 {[%clk 0:01:24]}  Bxf4+ {[%clk 0:02:40]} 31. exf4 {[%clk 0:01:26]}  Qxf4+ {[%clk 0:02:42]} 32. Kh1 {[%clk 0:01:28]}  Qf3+ {[%clk 0:02:18]} 33. Kh2 {[%clk 0:01:29]}  Qf2+ {[%clk 0:02:20]} 34. Kh1 {[%clk 0:01:31]}  Rxg1+ {[%clk 0:02:04]} 35. Rxg1+ {[%clk 0:01:31]}  Kf7 {[%clk 0:02:05]} 36. Rg2 {[%clk 0:01:30]}  Qe1+ {[%clk 0:02:01]} 37. Kh2 {[%clk 0:01:27]}  d4 {[%clk 0:01:53]} 38. d3 {[%clk 0:01:19]}  Qe5+ {[%clk 0:01:46]} 39. Rg3 {[%clk 0:01:03]}  Qe2+ {[%clk 0:01:33]} 40. Rg2 {[%clk 0:01:02]}  Qxd3 {[%clk 0:01:28]} 41. Bxc5 {[%clk 0:01:03]}  Qc3 {[%clk 0:01:12]} 42. Bxa7 {[%clk 0:01:03]}  d3 {[%clk 0:01:12]} 43. Rf2+ {[%clk 0:01:04]}  Ke6 {[%clk 0:01:08]} 44. Be3 {[%clk 0:01:06]}  Qe5+ {[%clk 0:01:00]} 45. Bf4 {[%clk 0:01:07]}  Qe1 {[%clk 0:00:52]} 46. Kg2 {[%clk 0:01:03]}  Kd5 {[%clk 0:00:39]} 47. Bd2 {[%clk 0:01:03]}  Qb1 {[%clk 0:00:37]} 48. Bc3 {[%clk 0:00:55]}  Ke4 {[%clk 0:00:33]} 49. b4 {[%clk 0:00:50]}  Kd5 {[%clk 0:00:19]} 50. a4 {[%clk 0:00:46]}  Kc4 {[%clk 0:00:20]} 51. Bd2 {[%clk 0:00:45]}  Qa1 {[%clk 0:00:18]} 52. a5 {[%clk 0:00:46]}  h5 {[%clk 0:00:17]} 53. Rf4+ {[%clk 0:00:18]}  Kb3 {[%clk 0:00:19]} 54. Rf3 {[%clk 0:00:20]}  Qg7+ {[%clk 0:00:14]} 55. Kh2 {[%clk 0:00:21]}  Qe5+ {[%clk 0:00:12]} 56. Kg2 {[%clk 0:00:21]}  Qe2+ {[%clk 0:00:13]} 57. Rf2 {[%clk 0:00:22]}  Qe4+ {[%clk 0:00:14]} 58. Kg1 {[%clk 0:00:20]}  Qc4 {[%clk 0:00:09]} 59. Rf4 {[%clk 0:00:19]}  Qc2 {[%clk 0:00:09]} 60. Rf2 {[%clk 0:00:20]}  Qd1+ {[%clk 0:00:10]} 61. Kg2 {[%clk 0:00:19]}  Qa1 {[%clk 0:00:11]} 62. Rf3 {[%clk 0:00:19]}  Qg7+ {[%clk 0:00:11]} 63. Kh2 {[%clk 0:00:20]}  Qe5+ {[%clk 0:00:12]} 64. Kg2 {[%clk 0:00:22]}  Qe4 {[%clk 0:00:11]} 65. Kg3 {[%clk 0:00:09]}  h4+ {[%clk 0:00:12]} 66. Kg2 {[%clk 0:00:11]}  Kc2 {[%clk 0:00:12]} 67. Bf4 {[%clk 0:00:08]}  d2 {[%clk 0:00:08]} 68. Bxd2 {[%clk 0:00:06]}  Kxd2 {[%clk 0:00:10]} 69. a6 {[%clk 0:00:04]}  Ke2 {[%clk 0:00:11]} 0-1


[Site "Internet"]